Cogmind - Beta 12 @@@ ROGUE MODE // 2023.03.12 @ 20:25:14 Player: Momo Result: Destroyed by G-47 Trooper with Particle Gun Performance ------------- Evolutions (0) 0 Regions Visited (2) 400 Robots Destroyed (18) 90 Value Destroyed (343) 343 Prototype IDs (2) 40 Alien Tech Used (0) 0 Bonus (0) 0 TOTAL SCORE: 873 Bonus ------- None Cogmind --------- Core Integrity 0/250 Matter 300/300 Energy 244/250 System Corruption 0% Temperature Warm (107) Movement Rolling (140) Ox4 Location -10/Mines Parts ------- > --- POWER (1) -------- Ion Engine > --- PROPULSION (2) --- Wheel Wheel > --- UTILITY (2) ------ Huge Storage Unit > --- WEAPON (2) ------- EM Pulse Gun Medium Laser > --- INVENTORY (25) --- Ion Engine Light Ion Engine Light Treads Light Treads Wheel Compact Matter Pod (150) Signal Interpreter Grenade Launcher Explosive Trap Explosive Trap Explosive Trap Explosive Trap Explosive Trap Peak State ------------ > --- POWER ------------ Ion Engine > --- PROPULSION ------- Wheel Wheel > --- UTILITY ---------- Huge Storage Unit > --- WEAPON ----------- Medium Laser Grenade Launcher > --- INVENTORY -------- Ion Engine Light Treads Light Treads Compact Matter Pod Signal Interpreter EM Pulse Gun Explosive Trap Explosive Trap Explosive Trap Explosive Trap Explosive Trap [Rating: 7] Favorites ----------- Power Ion Engine Engine Ion Engine Propulsion Wheel Treads Light Treads Wheel Wheel Utility Huge Storage Unit Storage Huge Storage Unit Weapon Grenade Launcher Energy Gun Medium Laser Launcher Grenade Launcher Build | -11 -10 -10 ------- Run | Jun Mat Min Slots Evolved . | . . . Power . | . . . Propulsion . | . . . Utility . | . . . Weapon . | . . . Parts Attached 10 | 4 1 5 Power 1 | 1 . . Engine 1 | 1 . . Core . | . . . Reactor . | . . . Propulsion 4 | 2 . 2 Treads 2 | 2 . . Leg . | . . . Wheel 2 | . . 2 Hover . | . . . Flight . | . . . Utility 2 | 1 . 1 Device . | . . . Storage 2 | 1 . 1 Processor . | . . . Hackware . | . . . Protection . | . . . Artifact . | . . . Weapon 3 | . 1 2 Energy Gun 2 | . . 2 Energy Cannon . | . . . Ballistic Gun . | . . . Ballistic Cannon . | . . . Launcher 1 | . 1 . Special Weapon . | . . . Impact Weapon . | . . . Slashing Weapon . | . . . Piercing Weapon . | . . . Special Melee Weapon . | . . . Unidentified Prototypes . | . . . Parts Lost . | . . . Power . | . . . Propulsion . | . . . Utility . | . . . Weapon . | . . . Highest Loss Streak . | . . . To Critical Strikes . | . . . Average Slot Usage (%) 75 | . 69 76 Engine 14 | . 14 14 Treads 8 | . 28 2 Wheel 19 | . . 25 Storage 14 | . 14 14 Energy Gun 9 | . . 12 Launcher 9 | . 12 7 Naked Turns . | . . . Heaviest Build 89 | 10 13 89 Greatest Support 40 | 40 40 40 Greatest Overweight (x) 4 | . . 4 Average Overweight (x) 2 | . . 3 Largest Inventory Capacity 25 | 8 8 25 Average Capacity 18 | 7 8 23 Most Carried 13 | 5 7 13 Average Carried 9 | 2 5 11 Final Capacity 25 | 8 8 25 Final Carried 13 | 5 7 13 Class Distribution -------------------- 100% | Mutant Dominant Class ---------------- Mutant | -10/Materials Mutant | -10/Mines Resources | -11 -10 -10 ----------- Run | Jun Mat Min Matter Collected 478 | 240 82 156 Remotely . | . . . Salvage Created 266 | . 88 178 Parts 32 | . 10 22 Haulers Intercepted . | . . . Recyclers Shooed 1 | . 1 . Parts Field Recycled . | . . . Retrieved Matter . | . . . Parts Self-Destructed . | . . . Prevented . | . . . Kills | -11 -10 -10 ------- Run | Jun Mat Min Combat Hostiles Destroyed 13 | . 5 8 Guns 1 | . . 1 AOE 12 | . 5 7 Classes Destroyed 7 | . 5 2 Worker 1 | . . 1 Builder 1 | . . 1 Recycler 1 | . 1 . Operator 1 | . 1 . Watcher 1 | . 1 . Swarmer 9 | . 3 6 Grunt 4 | . 2 2 Best Kill Streak 7 | . 3 7 Combat Bots Only 6 | . 3 6 Max Kills in Single Turn 3 | . 2 3 Gunslinging . | . . . Exploded 2 | . 2 2 Melee . | . . . Uniques/NPCs Destroyed . | . . . Combat | -11 -10 -10 -------- Run | Jun Mat Min Damage Taken 558 | . 370 188 Core 259 | . 178 81 Absorbed by Shields . | . . . Core Remaining (%) 100 | 100 . . Volleys Fired 22 | . 10 12 Largest 2 | . 1 2 Hottest 90 | . 30 90 Shots Fired 28 | . 10 18 Gun 13 | . . 13 Cannon . | . . . Launcher 15 | . 10 5 Special . | . . . Kinetic . | . . . Thermal 7 | . . 7 Explosive 15 | . 10 5 Electromagnetic 6 | . . 6 Robot Hit Streak 4 | . 3 4 Robot Miss Streak 1 | . 1 1 Penetration Max . | . . . Secondary Targets . | . . . Shots Hit Robots 15 | . 4 11 Core Hits 24 | . 13 11 Critical Kills . | . . . Critical Parts Destroyed . | . . . Critical Strikes 1 | . . 1 Corrupt 1 | . . 1 Melee Attacks . | . . . Impact . | . . . Slashing . | . . . Piercing . | . . . Sneak Attacks . | . . . Combat Hostiles . | . . . Follow-up Attacks . | . . . Damage Inflicted 969 | . 525 444 Guns 119 | . . 119 Cannons . | . . . Explosions 850 | . 525 325 Melee . | . . . Ramming . | . . . Kinetic . | . . . Thermal 115 | . . 115 Explosive 798 | . 525 273 Electromagnetic 56 | . . 56 Impact . | . . . Slashing . | . . . Piercing . | . . . Highest Corruption . | . . . Average Corruption . | . . . Corruption Purged . | . . . Corruption Blocked . | . . . Overload Shots . | . . . Overflow Damage 19 | . 19 . Projectiles . | . . . Explosions 19 | . 19 . Melee . | . . . Knockbacks . | . . . Impact . | . . . Kinetic . | . . . Secondary . | . . . Self-Inflicted Damage 310 | . 263 47 Shots 8 | . 6 2 Rammed . | . . . Targets Rammed . | . . . Kicked . | . . . Crushed . | . . . Highest Temperature 98 | . 4 98 Average Temperature 36 | . 1 42 Received Heat Transfer 78 | . 18 60 Siege Activations . | . . . Robots Corrupted . | . . . Combat Hostiles . | . . . Parts Fried . | . . . Impact Corruptions . | . . . Robots Melted . | . . . Combat Hostiles . | . . . Parts Melted . | . . . Heat Transferred 235 | . . 235 Parts Sabotaged . | . . . Parts Stolen . | . . . Parts Stripped . | . . . Power Chain Reactions 1 | . . 1 Missiles Intercepted . | . . . Alert | -11 -10 -10 ------- Run | Jun Mat Min Peak Influence 305 | . 305 290 Initial 118 | . . 118 Average 164 | . 163 181 Maximum Alert Level 1 | . 1 1 Low Security (%) 67 | 100 55 67 Level 1 32 | . 44 32 Level 2 . | . . . Level 3 . | . . . Level 4 . | . . . Level 5 . | . . . High Security . | . . . Max Security . | . . . Squads Dispatched 1 | . 1 . Investigation . | . . . Extermination . | . . . Reinforcement 1 | . 1 . Assault . | . . . Garrison . | . . . Intercept . | . . . Searches Triggered . | . . . Construction Impeded . | . . . Haulers Reinforced . | . . . Active Scanning Responses . | . . . Cargo Convoy Interrupts . | . . . Stealth | -11 -10 -10 --------- Run | Jun Mat Min Distress Signals 1 | . 1 . Communications Jammed . | . . . Distress Signals . | . . . Times Spotted 19 | . 9 10 Peak Tracking Total 5 | . 5 3 Tactical Retreats . | . . . Traps | -11 -10 -10 ------- Run | Jun Mat Min Traps Triggered . | . . . Indirectly . | . . . Trap Hack Attempts . | . . . Triggered . | . . . Disarmed . | . . . Reprogrammed . | . . . Reused . | . . . Traps Extracted . | . . . Installed . | . . . Triggered . | . . . Most Traps Carried 5 | . . 5 Machines | -11 -10 -10 ---------- Run | Jun Mat Min Machines Disabled 6 | . 5 1 Max in Single Turn 3 | . 3 1 Machines Repaired . | . . . Machines Sabotaged . | . . . Overloaded Fab Kills . | . . . Hacking | -11 -10 -10 --------- Run | Jun Mat Min Machines Accessed 2 | . 2 . Terminals 2 | . 2 . Fabricators . | . . . Repair Stations . | . . . Recycling Units . | . . . Scanalyzers . | . . . Garrison Access . | . . . Total Hacks 7 | . 7 . Successful 2 | . 2 . Failed 5 | . 5 . Catastrophic 2 | . 2 . Database Lockouts . | . . . Manual 6 | . 6 . Terminals 7 | . 7 . Fabricators . | . . . Repair Stations . | . . . Recycling Units . | . . . Scanalyzers . | . . . Garrison Access . | . . . Terminal Hacks 1 | . 1 . Prototype ID Bank 1 | . 1 . Fabricator Hacks . | . . . Repair Station Hacks . | . . . Recycling Unit Hacks . | . . . Scanalyzer . | . . . Garrison Access Hacks . | . . . Unauthorized Hacks 1 | . 1 . Terminals 1 | . 1 . Botnet 1 | . 1 . Fabricators . | . . . Repair Stations . | . . . Recycling Units . | . . . Scanalyzers . | . . . Garrison Access . | . . . Data Cores Recovered 1 | . 1 . Used . | . . . Hacking Detections 2 | . 2 . Full Trace Events . | . . . Feedback Events . | . . . Feedback Blocked . | . . . Robot Schematics Acquired . | . . . Robots Built . | . . . Authchips . | . . . Time . | . . . Total Robot Build Rating . | . . . Part Schematics Acquired . | . . . Parts Built . | . . . Authchips . | . . . Time . | . . . Total Part Build Rating . | . . . Parts Repaired . | . . . Time . | . . . Parts Recycled . | . . . Recycled Matter . | . . . Retrieved Matter . | . . . Retrieved Components . | . . . Parts Scanalyzed . | . . . Part Schematics Acquired . | . . . Parts Damaged . | . . . Bothacking | -11 -10 -10 ------------ Run | Jun Mat Min Used RIF Installer . | . . . Robots Hacked . | . . . Non-combat . | . . . Combat . | . . . Robot Hacks Applied . | . . . Relay Couplers Released . | . . . Fabnet Peak Effective % . | . . . Robots Rewired . | . . . Allies Hacked . | . . . Hacks Repelled . | . . . Allies | -11 -10 -10 -------- Run | Jun Mat Min Total Allies . | . . . Largest Group . | . . . Highest-Rated Group . | . . . Highest-Rated Ally . | . . . Total Orders . | . . . Ally Attacks . | . . . Total Damage . | . . . Kills . | . . . Allies Corrupted . | . . . Allies Melted . | . . . Intel | -11 -10 -10 ------- Run | Jun Mat Min Robot Analysis Total . | . . . Derelict Logs Recovered 1 | . . 1 Drone Launches . | . . . Drone Recoveries . | . . . Exploration | -11 -10 -10 ------------- Run | Jun Mat Min Turns Passed 1145 | 84 245 816 Spaces Moved 713 | 49 139 525 Core 4 | 4 . . Treads 237 | 45 139 53 Legs . | . . . Wheels 472 | . . 472 Hover . | . . . Flight . | . . . Fastest Speed 50 | 50 160 80 Average Speed 146 | 151 160 141 Slowest Speed 160 | 160 160 160 Overloaded Moves . | . . . Propulsion Burnouts . | . . . Robots Hopped . | . . . Cave-ins Triggered . | . . . Exploration Rate (%) 49 | 5 47 96 Regions Visited 2 Branch Regions 1 Pre-discovered Areas . | . . . Known Exits Taken . | . . . Unknown Exits Taken 2 | 1 1 . Scrap Searched 1 | . . 1 Spaces Dug . | . . . Terrain Destroyed 119 | . 66 53 Melee . | . . . Projectile . | . . . AOE 119 | . 66 53 Terrain Rammed . | . . . Walls Destroyed . | . . . Machines Disabled . | . . . Actions | -11 -10 -10 --------- Run | Jun Mat Min Total 789 | 58 151 580 Wait 24 | . . 24 Move 711 | 48 138 525 Hop . | . . . Pick Up 18 | 6 2 10 Fast Attach 4 | 3 1 . Attach 4 | 1 . 3 Detach 1 | . . 1 Swap 2 | . . 2 Drop 3 | . . 3 Fire 22 | . 10 12 Melee . | . . . Ram . | . . . Kick . | . . . Crush . | . . . Escape Stasis . | . . . Rewire . | . . . Trap . | . . . Miscellaneous . | . . . Route ------- -11/Junkyard -10/Materials -10/Mines (discovered 2 exits: [*Mat x2]) History --------- Turn | Location | Event 61 | -11/Junkyard | Discovered new exit (range 12) 85 | -11/Junkyard | Entered Materials 139 | -10/Materials | Core integrity fell below 50% 303 | -10/Materials | Discovered new exit (range 6) 311 | -10/Materials | Build established: Mutant 330 | -10/Materials | Entered Mines 381 | -10/Mines | Discovered new exit (range 8) 415 | -10/Mines | Found a hidden stash of uninstalled traps 675 | -10/Mines | Learned Materials terminal intel 795 | -10/Mines | Core integrity fell below 20% 1137 | -10/Mines | Discovered new exit (range 7) 1146 | -10/Mines | Destroyed by G-47 Trooper with Particle Gun Last Messages --------------- Data stored: Materials terminal intel. 00790_ Searching scrap... 00790_ Found Seismic Detector. 00790_ Found Sml. Battery. 00790_ Found 36 Matter. 00790_ Found 28 Matter. 00791_ Acquired 28 matter. 00791_ Acquired 36 matter. 00799_ Chain reaction triggered in Lgt. Nuclear Core. 00799_ G-47 Trooper destroyed. 00802_ G-34 Mercenary destroyed. 00805_ Acquired 30 matter. 00812_ K-01 Serf collects debris. 00863_ T-07 Excavator is excavating. 00926_ U-05 Engineer lays Concrete. 00949_ K-01 Serf destroyed. 00958_ Acquired Wheel. 01073_ Acquired Lgt. Ion Engine. 01137_ EXIT=FOUND 01141_ Seismic Survey Station disabled. Map ----- +----------------------------------------------------+ | ##????????????# #???####??????????????? | | #####???????### ##### ##??????###????? | | ####???## ##????# ##???? | | ########### ##### #???? | | # [ = ####### #???? | | # ###########?????### #????? | | ## # #??????####?????## ##????? | | =###?###### ##????## ##?????? | | #???# #????# #??????? | | ###???# #????# #??????? | | #?????# ## ##???# #??????? | | #?????# ## ##??# ##??????? | | #??? # ## ##?## ##??????? | | ## # # ##?## ##?????? | | ####### # ##?## #?????? | | ## #??## #?????? | | [ ### #???# #????? | | ##########?## ###?# #????? | | #########?????# #?# #????? | | ??????????????## ### #?## ##????? | | ???????????????## #?# #??######?????? | | ????????????????## #?# #?????????????? | | ?????????????????## #?# #?????????????? | | ??########????????###?# ###???????????? | | ??# #????????????# #???????????? | | ??# ! #????????????###@#???????????? | | ?##! ! #??????????????# #???????????? | | ## ! #??????????????# #???????????? | | ! #??????????????#g#???????????? | | #?????????????? ???????????? | | ####?????????????? ???????????? | | #?????????????????"g